bitfinex/quotes_BTCUSD_20240715
["timestamp","ask_amount","ask_price","bid_price","bid_amount"]
[1721014722942,1.45103397,62654.0,62653.0,0.014]
[1721014723151,1.45103397,62654.0,62653.0,0.016]
[1721014723563,1.45103397,62654.0,62653.0,0.002]
[1721014723768,0.01529887,62645.0,62644.0,0.000913]
[1721014724077,0.19505458,62645.0,62644.0,0.01383998]
[1721014724444,1.34861056,62645.0,62644.0,0.01383998]
[1721014724611,1.50861056,62645.0,62644.0,0.000913]
[1721014724824,1.67072847,62645.0,62644.0,0.000913]
[1721014725020,1.67072847,62645.0,62644.0,0.014913]
[1721014725532,1.16127756,62645.0,62644.0,0.014913]
[1721014725858,0.13148217,62645.0,62644.0,0.014913]
[1721014725985,0.19904552,62645.0,62644.0,0.02794651]
[1721014726186,0.01454377,62645.0,62644.0,0.03794651]
[1721014726387,0.01454377,62645.0,62644.0,0.18161451]
[1721014726573,0.13148217,62645.0,62644.0,0.15761451]
[1721014726772,0.13148217,62645.0,62644.0,0.01394651]
[1721014726973,0.13248217,62645.0,62644.0,0.02594651]
[1721014727170,0.19605458,62645.0,62644.0,0.02594651]
[1721014727457,0.19505458,62645.0,62644.0,0.15761451]
[1721014727613,0.01354377,62645.0,62644.0,0.45295151]
[1721014727954,0.19605458,62645.0,62644.0,0.17561451]
[1721014728283,0.19605458,62645.0,62644.0,0.16761451]
[1721014728553,0.19605458,62645.0,62644.0,0.02394651]
[1721014728997,0.19605458,62645.0,62644.0,0.03794651]
[1721014729145,0.19505458,62645.0,62644.0,0.02794651]
[1721014729570,0.19605458,62645.0,62644.0,0.03994651]
[1721014729774,1.00117752,62645.0,62644.0,0.03994651]
[1721014730177,0.98763375,62645.0,62644.0,0.012913]
[1721014730521,1.00133298,62645.0,62644.0,0.012913]
[1721014730674,1.00117773,62645.0,62644.0,0.026913]
[1721014730997,0.99998561,62645.0,62644.0,0.000913]
[1721014731199,0.99998561,62645.0,62644.0,0.014913]
[1721014731752,0.99998561,62645.0,62644.0,0.026913]
[1721014731753,1.00098561,62645.0,62644.0,0.026913]
[1721014732385,0.42631961,62645.0,62644.0,0.026913]
[1721014732573,0.29935992,62645.0,62644.0,0.026913]
[1721014732802,0.23179657,62645.0,62644.0,0.026913]
[1721014733115,0.14873065,62645.0,62644.0,0.170581]
[1721014733470,0.14908903,62645.0,62644.0,0.18155282]
[1721014734405,0.03134275,62645.0,62644.0,0.46888982]
[1721014734590,0.01770631,62645.0,62644.0,0.46888982]
[1721014734790,0.13545259,62645.0,62644.0,0.18155282]
[1721014735397,0.77311489,62645.0,62644.0,0.03788482]
[1721014735594,0.78644837,62645.0,62644.0,0.026913]
[1721014736489,1.07378137,62645.0,62644.0,0.026913]
[1721014736889,1.07434139,62645.0,62644.0,0.026913]
[1721014737527,1.13434139,62645.0,62644.0,0.026913]
[1721014739781,0.43757539,62645.0,62644.0,0.026913]
[1721014739982,0.43757539,62645.0,62644.0,0.170581]
[1721014739983,0.29390939,62645.0,62644.0,0.170581]
[1721014740194,0.22586031,62645.0,62644.0,0.026913]
[1721014740358,0.2298514,62645.0,62644.0,0.03794132]
[1721014740571,0.29345563,62645.0,62644.0,0.03794132]
[1721014741219,0.72445463,62645.0,62644.0,0.026913]
[1721014742511,0.72452993,62645.0,62644.0,0.026913]
[1721014744093,1.13796293,62645.0,62644.0,0.026913]
[1721014744302,1.23796293,62645.0,62644.0,0.026913]
[1721014745152,1.74729268,62645.0,62644.0,0.026913]
[1721014745471,1.9628914,62645.0,62644.0,0.026913]
[1721014745923,2.05850994,62645.0,62644.0,0.026913]
[1721014746128,0.77208243,62645.0,62644.0,0.014913]
[1721014746366,0.70036982,62645.0,62644.0,0.014913]
[1721014746688,0.6525594,62645.0,62644.0,0.016913]
[1721014746813,1.15512572,62645.0,62644.0,0.016913]
[1721014747015,1.22684055,62645.0,62644.0,0.000913]
[1721014747260,1.80150655,62645.0,62644.0,0.000913]
[1721014747463,1.83040853,62645.0,62644.0,0.012913]
[1721014747714,2.28225044,62645.0,62644.0,0.012913]
[1721014747893,2.28225044,62645.0,62644.0,0.000913]
[1721014747894,2.3241568,62645.0,62644.0,0.000913]
[1721014748098,2.32412663,62645.0,62644.0,0.011913]
[1721014748300,2.40963363,62645.0,62644.0,0.011913]
[1721014748508,2.40963363,62645.0,62644.0,0.000913]
[1721014748681,2.40963363,62645.0,62644.0,0.004913]
[1721014748881,1.98619542,62645.0,62644.0,0.004913]
[1721014749089,1.98619542,62645.0,62644.0,0.000913]
[1721014749300,1.67140771,62645.0,62644.0,0.000913]
[1721014749496,1.66640771,62645.0,62644.0,0.000913]
[1721014749809,1.57086242,62645.0,62644.0,0.000913]
[1721014750009,1.57586242,62645.0,62644.0,0.000913]
[1721014750461,1.58746415,62645.0,62644.0,0.000913]
[1721014750611,1.51586242,62645.0,62644.0,0.004913]
[1721014750813,1.22852942,62645.0,62644.0,0.004913]
[1721014751360,1.22352942,62645.0,62644.0,0.000913]
[1721014751504,1.22852942,62645.0,62644.0,0.000913]
[1721014751708,1.22852942,62645.0,62644.0,0.004913]
[1721014751903,0.29342067,62645.0,62644.0,0.004913]
[1721014752104,0.29342067,62645.0,62644.0,0.144581]
[1721014752105,0.0385308,62645.0,62644.0,0.144581]
[1721014752348,0.0385308,62645.0,62644.0,0.148581]
[1721014752349,0.15228592,62645.0,62644.0,0.148581]
[1721014752546,0.21585691,62645.0,62644.0,0.01602786]
[1721014753532,0.1472845,62645.0,62644.0,0.431005]
[1721014753706,0.1472845,62645.0,62644.0,0.5044471]
[1721014753707,0.03453822,62645.0,62644.0,0.5044471]
[1721014754199,0.03453822,62645.0,62644.0,0.5104471]
[1721014754692,0.03453822,62645.0,62644.0,0.83648523]
[1721014754898,0.03053822,62645.0,62644.0,1.13782223]
[1721014755096,0.01770631,62645.0,62644.0,1.13782223]
[1721014755394,0.01670631,62645.0,62644.0,1.12782223]
[1721014755589,0.01770631,62645.0,62644.0,1.43595923]
[1721014755742,0.01770631,62645.0,62644.0,1.43165032]
[1721014756150,0.01770631,62645.0,62644.0,1.51390404]
[1721014756592,0.01770631,62645.0,62644.0,1.50990404]
[1721014756814,0.01870631,62645.0,62644.0,1.52090404]
[1721014757316,0.01770631,62645.0,62644.0,1.50990404]
[1721014757480,0.01870631,62645.0,62644.0,1.52390404]
[1721014757710,0.01770631,62645.0,62644.0,1.15131332]
[1721014758102,0.002,62645.0,62644.0,1.16531332]
[1721014758277,0.002,62645.0,62644.0,1.45265032]
[1721014758460,0.002,62645.0,62644.0,1.16531332]
[1721014759507,0.002,62645.0,62644.0,1.45265032]
[1721014759721,0.002,62645.0,62644.0,1.16531332]
[1721014759904,0.001,62645.0,62644.0,1.15431332]
[1721014760310,0.002,62645.0,62644.0,1.16531332]
[1721014760513,0.001,62645.0,62644.0,1.15131332]
[1721014760722,0.001,62645.0,62644.0,1.14162223]
[1721014760927,0.002,62645.0,62644.0,1.46595923]
[1721014761331,0.002,62645.0,62644.0,1.62926533]
[1721014761680,0.002,62645.0,62644.0,1.72926533]
[1721014762241,0.001,62645.0,62644.0,1.71526533]
[1721014762512,0.002,62645.0,62644.0,1.72926533]
[1721014762817,0.001,62645.0,62644.0,1.71826533]
[1721014763007,0.001,62645.0,62644.0,1.72926533]
[1721014763211,0.002,62645.0,62644.0,1.72926533]
[1721014764831,0.002,62645.0,62644.0,1.54295923]
[1721014765530,0.002,62645.0,62644.0,1.62521295]
[1721014765758,0.002,62645.0,62644.0,1.54295923]
[1721014766071,0.002,62645.0,62644.0,1.62521295]
[1721014767520,0.002,62645.0,62644.0,1.54295923]
[1721014767970,0.002,62645.0,62644.0,1.44295923]
[1721014768171,0.002,62645.0,62644.0,1.54295923]
[1721014769519,0.002,62645.0,62644.0,1.1036211]
[1721014769873,0.002,62645.0,62644.0,1.14832223]
[1721014770494,0.002,62645.0,62644.0,1.97541295]
[1721014771086,0.002,62645.0,62644.0,1.97191717]
[1721014774132,0.1462,62645.0,62644.0,1.61916345]
[1721014774354,0.1462,62645.0,62644.0,0.1779101]
[1721014774953,0.1462,62645.0,62644.0,0.4652471]
[1721014775580,0.0834,62645.0,62644.0,0.78328523]
[1721014775872,0.001,62645.0,62644.0,1.07362223]
[1721014776115,0.002,62645.0,62644.0,1.16587595]
[1721014776316,0.002,62645.0,62644.0,1.08362223]
[1721014776517,0.001,62645.0,62644.0,0.78628523]
[1721014776787,0.002,62645.0,62644.0,1.08362223]
[1721014777780,0.002,62645.0,62644.0,0.79628523]
[1721014778989,0.002,62645.0,62644.0,1.08362223]
[1721014779226,0.002,62645.0,62644.0,5.08362223]
[1721014781142,0.0676,62645.0,62644.0,5.08362223]
[1721014781386,0.26074628,62645.0,62644.0,4.0332421]
[1721014782014,0.27302367,62645.0,62644.0,4.0332421]
[1721014782361,0.27202367,62645.0,62644.0,4.0232421]
[1721014782568,0.27102367,62645.0,62644.0,4.0092421]
[1721014782767,0.33559608,62645.0,62644.0,4.0232421]
[1721014782978,0.33559608,62645.0,62644.0,4.023]
[1721014782979,1.44226108,62645.0,62644.0,4.023]
[1721014783148,1.50226108,62645.0,62644.0,4.023]
[1721014783352,1.56778006,62645.0,62644.0,4.014]
[1721014783759,1.56878006,62645.0,62644.0,4.023]
[1721014784187,1.56778006,62645.0,62644.0,4.009]
[1721014784390,1.57032184,62645.0,62644.0,4.009]
[1721014784591,1.52037745,62645.0,62644.0,4.023]
[1721014785086,1.51837745,62645.0,62644.0,4.0]
[1721014785284,1.51937745,62645.0,62644.0,4.014]
[1721014785603,1.51937745,62645.0,62644.0,4.019]
[1721014785604,1.57135693,62645.0,62644.0,4.019]
[1721014787299,2.41938074,62645.0,62644.0,3.50128535]
[1721014787501,2.71602629,62645.0,62644.0,3.50128535]
[1721014787696,2.39938296,62645.0,62644.0,3.26220451]
[1721014788189,2.39838296,62645.0,62644.0,3.25720451]
[1721014788388,2.23626505,62645.0,62644.0,3.25720451]
[1721014788614,2.24826505,62645.0,62644.0,3.24420451]
[1721014788793,1.68151413,62645.0,62644.0,3.24420451]
[1721014788991,1.8509921,62645.0,62644.0,3.24320451]
[1721014789206,1.69243205,62645.0,62644.0,3.24420451]
[1721014789427,1.80623992,62645.0,62644.0,3.24520451]
[1721014789759,1.80623992,62645.0,62644.0,3.24420451]
[1721014789760,1.74094018,62645.0,62644.0,3.24420451]
[1721014789960,1.72694018,62645.0,62644.0,3.24320451]
[1721014790283,1.76079997,62645.0,62644.0,3.24420451]
[1721014790488,1.86079997,62645.0,62644.0,3.24420451]
[1721014790853,1.76134381,62645.0,62644.0,3.24420451]
[1721014791081,2.63057138,62645.0,62644.0,3.16090451]
[1721014791256,2.63813233,62645.0,62644.0,3.16190451]
[1721014791464,2.63813233,62645.0,62644.0,3.16090451]
[1721014791465,2.46919558,62645.0,62644.0,3.16090451]
[1721014791870,2.47019558,62645.0,62644.0,3.16090451]
[1721014792081,2.47019558,62645.0,62644.0,3.15990451]
[1721014792082,2.29069558,62645.0,62644.0,3.15990451]
[1721014792318,2.4098828,62645.0,62644.0,3.15990451]
[1721014792477,2.4188828,62645.0,62644.0,3.15990451]
[1721014792677,2.4198791,62645.0,62644.0,3.15990451]
[1721014792968,2.30069558,62645.0,62644.0,3.15990451]
[1721014793166,2.29169558,62645.0,62644.0,3.15990451]
[1721014793291,2.46919558,62645.0,62644.0,3.15990451]
[1721014793491,2.5883791,62645.0,62644.0,3.15990451]
[1721014793759,2.46919558,62645.0,62644.0,3.15990451]
[1721014794101,2.17383113,62645.0,62644.0,3.15990451]
[1721014794318,2.07850558,62645.0,62644.0,3.15990451]
[1721014794483,2.14999652,62645.0,62644.0,3.15990451]
[1721014795325,2.07850558,62645.0,62644.0,3.15990451]
[1721014795533,2.02602925,62645.0,62644.0,3.15990451]
[1721014795747,1.83869625,62645.0,62644.0,3.15990451]
[1721014796083,1.53902254,62645.0,62644.0,3.15990451]
[1721014796524,1.47902254,62645.0,62644.0,3.15990451]
[1721014797428,1.47899481,62645.0,62644.0,3.15990451]
[1721014797855,1.04115294,62645.0,62644.0,3.15990451]
[1721014798942,1.04015294,62645.0,62644.0,3.15990451]
[1721014799153,1.03115294,62645.0,62644.0,3.15990451]
[1721014799389,1.03115294,62645.0,62644.0,3.16190451]
[1721014799592,1.03815294,62645.0,62644.0,3.16190451]
[1721014800061,1.03815294,62645.0,62644.0,3.16281751]
[1721014800398,0.38594859,62645.0,62644.0,3.16281751]
[1721014800576,0.449521,62645.0,62644.0,3.16281751]
[1721014800777,0.75085203,62645.0,62644.0,3.16281751]
[1721014800978,0.75085262,62645.0,62644.0,3.16281751]
[1721014801378,0.74385262,62645.0,62644.0,3.16281751]
[1721014801624,0.74385262,62645.0,62644.0,3.16081751]
[1721014801847,0.64485262,62645.0,62644.0,3.16481751]
[1721014802003,0.631854,62645.0,62644.0,3.17881751]
[1721014802203,0.64547752,62645.0,62644.0,3.17881751]
[1721014802805,0.35814452,62645.0,62644.0,3.17881751]
[1721014803339,0.64541319,62645.0,62644.0,3.17881751]
[1721014803698,0.35808019,62645.0,62644.0,3.17881751]
[1721014803889,0.64441319,62645.0,62644.0,3.17881751]
[1721014806520,0.64445415,62645.0,62644.0,3.17881751]
[1721014806731,0.64345415,62645.0,62644.0,3.17481751]
[1721014806883,0.64245415,62645.0,62644.0,3.16081751]
[1721014807085,0.64345415,62645.0,62644.0,3.16381751]
[1721014808326,0.64445415,62645.0,62644.0,3.17781751]
[1721014809707,0.64424399,62645.0,62644.0,3.17781751]
[1721014811648,0.14967258,62645.0,62644.0,3.17781751]
[1721014811841,0.01953631,62645.0,62644.0,4.03655951]
[1721014812050,0.01953631,62645.0,62644.0,4.36859764]
[1721014812219,0.01953631,62645.0,62644.0,4.45185136]
[1721014812220,0.00283,62645.0,62644.0,4.45185136]
[1721014812597,0.00283,62645.0,62644.0,4.36859764]
[1721014813027,0.00183,62645.0,62644.0,4.36559764]
[1721014813201,0.00183,62645.0,62644.0,4.35459764]
[1721014813401,0.00283,62645.0,62644.0,4.37823356]
[1721014814166,0.00283,62645.0,62644.0,4.33353243]
[1721014814380,0.00283,62645.0,62644.0,3.74922251]
[1721014815223,0.11957628,62645.0,62644.0,3.30299799]
[1721014815767,0.18314869,62645.0,62644.0,3.30299799]
[1721014816128,0.18621222,62645.0,62644.0,3.30299799]
[1721014816331,0.18314869,62645.0,62644.0,3.30299799]
[1721014816538,0.18314869,62645.0,62644.0,3.24289799]
[1721014816539,0.00283,62645.0,62644.0,3.24289799]
[1721014816734,0.00283,62645.0,62644.0,3.38656599]
[1721014817151,0.11957628,62645.0,62644.0,3.38656599]
[1721014817353,0.11957628,62645.0,62644.0,3.24289799]
[1721014817958,0.13628259,62645.0,62644.0,3.24289799]
[1721014818358,0.13934612,62645.0,62644.0,3.24289799]
[1721014818933,0.13628259,62645.0,62644.0,3.38656599]
[1721014819084,0.01953631,62645.0,62644.0,3.67390299]
[1721014819287,0.13628259,62645.0,62644.0,3.67390299]
[1721014819899,0.01953631,62645.0,62644.0,3.67390299]
[1721014820098,0.02259984,62645.0,62644.0,3.67390299]
[1721014820700,0.01953631,62645.0,62644.0,3.67390299]
[1721014820900,0.02259984,62645.0,62644.0,3.67390299]
[1721014821327,0.01953631,62645.0,62644.0,4.07084112]
[1721014821530,0.01953631,62645.0,62644.0,4.35817812]
[1721014828398,0.01953631,62645.0,62644.0,4.36754909]
[1721014830182,0.01953631,62645.0,62644.0,4.73813981]
[1721014830334,0.00283,62645.0,62644.0,4.96113981]
[1721014830539,1.0,62662.0,62644.0,4.96113981]
[1721014830540,0.01670631,62656.0,62655.0,1.27595885]
[1721014830745,0.01670631,62656.0,62655.0,1.19270513]
[1721014831167,1.0,62662.0,62661.0,0.04470113]
[1721014831370,1.0,62662.0,62661.0,0.76285113]
[1721014831630,1.0,62662.0,62661.0,0.77748578]
[1721014831788,1.0,62662.0,62661.0,0.77648578]
[1721014831987,1.0,62662.0,62661.0,1.06374578]
[1721014832189,1.0,62662.0,62661.0,1.2902995]
[1721014832390,0.01670631,62664.0,62663.0,1.04907613]
[1721014832618,0.01670631,62664.0,62663.0,1.04807613]
[1721014832792,0.01670631,62664.0,62663.0,1.06263295]
[1721014833814,0.01670631,62664.0,62663.0,1.07663295]
[1721014835387,0.01670631,62664.0,62663.0,1.09063295]
[1721014835805,0.01670631,62664.0,62663.0,1.08615099]
[1721014836030,0.01670631,62664.0,62663.0,0.75619986]
[1721014836234,0.01670631,62664.0,62663.0,1.03393182]
[1721014836633,0.01670631,62664.0,62663.0,1.07663295]
[1721014837060,0.01670631,62664.0,62663.0,1.06263295]
[1721014837255,0.01670631,62664.0,62663.0,1.07663295]
[1721014837438,0.01670631,62664.0,62663.0,1.09063295]
[1721014837834,0.01670631,62664.0,62663.0,1.17388667]
[1721014838062,0.00083,62672.0,62671.0,0.76073613]
[1721014838353,0.00083,62672.0,62671.0,1.12835013]
[1721014838476,0.00083,62672.0,62671.0,1.60297497]
[1721014840681,0.00083,62672.0,62671.0,1.61227586]
[1721014841022,0.00083,62672.0,62671.0,1.62627586]
[1721014841737,0.00083,62672.0,62671.0,1.72627586]
[1721014842069,0.00083,62672.0,62671.0,1.62627586]
[1721014842290,0.00083,62672.0,62671.0,1.63827586]
[1721014843200,0.00083,62672.0,62671.0,1.62627586]
[1721014843417,0.00083,62672.0,62671.0,1.54302214]
[1721014843730,0.00083,62672.0,62671.0,1.62627586]
[1721014844092,0.00083,62672.0,62671.0,1.61227586]
[1721014844293,0.00083,62672.0,62671.0,1.62627586]
[1721014845297,0.00083,62672.0,62671.0,1.64027586]
[1721014845551,0.00083,62672.0,62671.0,1.55702214]
[1721014849312,0.00083,62672.0,62671.0,1.26980814]
[1721014849516,0.00083,62672.0,62671.0,0.18666412]
[1721014849743,0.00083,62672.0,62671.0,0.51657925]
[1721014849939,0.00083,62672.0,62671.0,1.17240725]
[1721014850234,0.00083,62672.0,62671.0,1.23820725]
[1721014853417,0.00083,62672.0,62671.0,1.17240725]
[1721014854093,0.00083,62672.0,62671.0,1.09100725]
[1721014854298,0.00083,62672.0,62671.0,0.80379325]
[1721014855360,0.00083,62672.0,62671.0,0.76109212]
[1721014856331,0.00083,62672.0,62671.0,1.09100725]
[1721014856531,0.00083,62672.0,62671.0,1.04830612]
[1721014856668,0.00083,62672.0,62671.0,1.09100725]
[1721014857285,0.00083,62672.0,62671.0,1.17426097]
[1721014858086,0.00083,62672.0,62671.0,1.31976097]
[1721014858351,0.00083,62672.0,62671.0,1.72997497]
[1721014860046,0.00083,62672.0,62671.0,1.86259258]
[1721014861141,0.00083,62672.0,62671.0,1.39212381]
[1721014861385,0.00083,62672.0,62671.0,1.19380725]
[1721014861550,0.00083,62672.0,62671.0,1.18911865]
[1721014864888,0.00083,62672.0,62671.0,1.32174258]
[1721014865749,0.00083,62672.0,62671.0,1.32174138]
[1721014868807,0.00083,62672.0,62671.0,1.17624138]
[1721014869017,0.00083,62672.0,62671.0,1.21894251]
[1721014870027,0.00083,62672.0,62671.0,1.30219623]
[1721014870233,0.00083,62672.0,62671.0,1.39099763]
[1721014870534,0.00083,62672.0,62671.0,1.33942475]
[1721014870826,0.00083,62672.0,62671.0,2.32617003]
[1721014871222,0.00083,62672.0,62671.0,2.54238772]
[1721014871426,0.00083,62672.0,62671.0,3.0866406]
[1721014871629,0.00083,62672.0,62671.0,2.59467003]
[1721014871763,0.00306353,62689.0,62688.0,1.04767713]
[1721014872322,0.01670631,62691.0,62689.0,1.04765913]
[1721014872664,0.0828,62701.0,62700.0,0.717702]
[1721014872865,0.0603,62702.0,62701.0,0.143538]
[1721014873182,0.0603,62702.0,62701.0,0.430614]
[1721014873401,0.07700631,62702.0,62701.0,0.43967511]
[1721014874909,0.19375259,62702.0,62701.0,0.15259911]
[1721014875300,0.19375259,62702.0,62701.0,0.16059911]
[1721014875671,0.259325,62702.0,62701.0,0.03106111]
[1721014875888,0.4949981,62702.0,62701.0,0.022]
[1721014876031,0.49499801,62702.0,62701.0,0.022]
[1721014876229,0.35146201,62702.0,62701.0,0.022]
[1721014876554,0.27595259,62702.0,62701.0,0.03103607]
[1721014876729,0.341525,62702.0,62701.0,0.03103607]
[1721014877139,0.27595259,62702.0,62701.0,0.03103607]
[1721014877334,0.15920631,62702.0,62701.0,0.03103607]
[1721014877900,0.15920631,62702.0,62701.0,0.17457407]
[1721014878456,0.341525,62702.0,62701.0,0.17457407]
[1721014879253,0.15920631,62702.0,62701.0,0.17457407]
[1721014879633,0.15920631,62702.0,62701.0,0.46165007]
[1721014879835,0.15920631,62702.0,62701.0,0.74872607]
[1721014880079,0.01670631,62702.0,62701.0,0.74872607]
[1721014880703,0.01670631,62702.0,62701.0,1.0785032]
[1721014881882,1.00834,62707.0,62706.0,1.04738613]
[1721014882153,0.00834,62707.0,62706.0,1.04738613]
[1721014882331,0.00834,62707.0,62706.0,1.05636801]
[1721014883125,0.00834,62707.0,62706.0,1.06736801]
[1721014883327,0.00834,62707.0,62706.0,1.02466688]
[1721014883526,0.00834,62707.0,62706.0,1.01366688]
[1721014883942,0.00834,62707.0,62706.0,1.05636801]
[1721014884358,0.00834,62707.0,62706.0,1.05936801]
[1721014885014,0.00834,62707.0,62706.0,1.07036801]
[1721014885209,0.00834,62707.0,62706.0,1.08436801]
[1721014885537,0.00834,62707.0,62706.0,1.07036801]
[1721014886516,0.00834,62707.0,62706.0,1.05636801]
[1721014886835,0.00834,62707.0,62706.0,1.07036801]
[1721014887760,0.00834,62707.0,62706.0,1.08436801]
[1721014888166,0.00834,62707.0,62706.0,1.07036801]
[1721014888751,0.00834,62707.0,62706.0,1.08436801]
[1721014888976,0.00834,62707.0,62706.0,0.03698188]
[1721014888977,0.33605869,62707.0,62706.0,0.03698188]
[1721014889169,0.50091612,62707.0,62706.0,0.03698188]
[1721014889287,1.43200119,62707.0,62706.0,0.03698188]
[1721014889497,1.43200119,62707.0,62706.0,0.028]
[1721014889720,1.41465454,62707.0,62706.0,0.014]
[1721014889919,1.41465402,62707.0,62706.0,0.014]
[1721014890132,0.18231869,62691.0,62690.0,0.143562]
[1721014890330,0.11674628,62693.0,62692.0,0.143558]
[1721014890711,0.11674628,62693.0,62692.0,0.15131826]
[1721014891408,0.11674628,62696.0,62693.0,0.143556]
[1721014891831,0.11674628,62695.0,62694.0,0.00775772]
[1721014892039,0.18231869,62695.0,62694.0,0.00775772]
[1721014892437,0.143556,62693.0,62692.0,0.013]
[1721014892637,0.61298769,62693.0,62692.0,0.008]
[1721014892837,0.11674628,62689.0,62686.0,0.143572]
[1721014893237,0.11674628,62692.0,62686.0,0.287144]
[1721014893458,0.00306353,62693.0,62688.0,0.287132]
[1721014893804,0.00306353,62693.0,62690.0,0.143561]
[1721014893805,0.18231869,62693.0,62690.0,0.143561]
[1721014893982,0.18231869,62691.0,62690.0,0.143561]
[1721014894595,0.11674628,62692.0,62690.0,0.143561]
[1721014894800,0.11674628,62691.0,62690.0,0.143561]
[1721014895373,0.18231869,62691.0,62690.0,0.143561]
[1721014895728,0.18331869,62691.0,62690.0,0.157561]
[1721014896131,0.18331869,62691.0,62690.0,0.171561]
[1721014897287,0.001,62691.0,62690.0,0.171561]
[1721014898390,0.001,62691.0,62690.0,0.459601]
[1721014901843,0.001,62691.0,62690.0,0.028913]
[1721014903849,0.54824069,62691.0,62690.0,0.028913]
[1721014904048,1.30097671,62691.0,62690.0,0.028913]
[1721014904246,2.78520466,62691.0,62690.0,0.028913]
[1721014904446,2.49808266,62691.0,62690.0,0.028913]
[1721014904748,2.49708266,62691.0,62690.0,0.014913]
[1721014905008,2.49708266,62691.0,62690.0,0.000913]
[1721014905199,2.21196066,62691.0,62690.0,0.000913]
[1721014905362,2.21196066,62691.0,62690.0,0.006913]
[1721014905363,2.49908266,62691.0,62690.0,0.006913]
[1721014905591,2.49708266,62691.0,62690.0,0.006913]
[1721014906116,2.48714569,62691.0,62690.0,0.012913]
[1721014906312,2.49907825,62691.0,62690.0,0.012913]
[1721014908009,2.49707825,62691.0,62690.0,0.012913]
[1721014908305,2.49907825,62691.0,62690.0,0.012913]
[1721014908823,2.49707825,62691.0,62690.0,0.000913]
[1721014909227,2.49907825,62691.0,62690.0,0.006913]
[1721014909430,2.49907536,62691.0,62690.0,0.000913]
[1721014909629,2.65919327,62691.0,62690.0,0.000913]
[1721014909830,2.65919327,62691.0,62690.0,0.006913]
[1721014910178,2.66119327,62691.0,62690.0,0.006913]
[1721014910755,2.49907536,62691.0,62690.0,0.006913]
[1721014910953,2.49907557,62691.0,62690.0,0.006913]
[1721014911538,3.08619757,62691.0,62690.0,0.006913]
[1721014911759,3.18619757,62691.0,62690.0,0.006913]
[1721014911973,3.66481957,62691.0,62690.0,0.006913]
[1721014912189,3.66481957,62691.0,62676.0,0.46828973]
[1721014912190,1.48497469,62683.0,62676.0,0.46828973]
[1721014912399,2.20989397,62683.0,62676.0,0.46828973]
[1721014912601,2.19996409,62683.0,62676.0,0.46828973]
[1721014912777,2.25749145,62683.0,62676.0,0.46828973]
[1721014912997,2.62640086,62683.0,62676.0,0.46828973]
[1721014913200,2.4266027,62683.0,62676.0,0.46828973]
[1721014913406,2.2266027,62683.0,62676.0,0.46828973]
[1721014913959,2.27421506,62683.0,62676.0,0.46828973]
[1721014914372,2.27419998,62683.0,62676.0,0.46828973]
[1721014914570,2.2386027,62683.0,62682.0,0.00119204]
[1721014914786,0.01729887,62664.0,62663.0,0.000913]
[1721014914995,0.81693745,62664.0,62663.0,0.000913]
[1721014915234,1.39142945,62664.0,62663.0,0.000913]
[1721014915436,1.49142945,62664.0,62663.0,0.000913]
[1721014915805,1.49266918,62664.0,62663.0,0.000913]
[1721014916073,1.49266945,62664.0,62663.0,0.000913]
[1721014916617,1.49466945,62664.0,62663.0,0.000913]
[1721014916819,1.20742345,62664.0,62663.0,0.000913]
[1721014917018,1.13613369,62664.0,62663.0,0.000913]
[1721014917218,0.77928769,62664.0,62663.0,0.000913]
[1721014917670,0.78728769,62664.0,62663.0,0.000913]
[1721014917862,1.07453369,62664.0,62663.0,0.000913]
[1721014918879,1.06453369,62664.0,62663.0,0.000913]
[1721014919033,1.06953369,62664.0,62663.0,0.000913]
[1721014919475,1.06853369,62664.0,62663.0,0.000913]
[1721014920345,1.06853369,62664.0,62663.0,0.003913]
[1721014920551,1.06453369,62664.0,62663.0,0.003913]
[1721014920725,1.06453369,62664.0,62663.0,0.000913]
[1721014920899,1.06853369,62664.0,62663.0,0.000913]
[1721014921678,0.35041869,62664.0,62663.0,0.000913]
[1721014921887,0.28631869,62664.0,62663.0,0.000913]
[1721014922087,0.43393154,62664.0,62663.0,0.000913]
[1721014922311,0.72117754,62664.0,62663.0,0.003913]
[1721014922484,0.72117754,62664.0,62663.0,0.000913]
[1721014922890,0.72117754,62664.0,62663.0,0.004913]
[1721014923249,0.72117754,62664.0,62663.0,0.000913]
[1721014923622,0.71817754,62664.0,62663.0,0.008913]
[1721014923829,0.28331869,62664.0,62663.0,0.008913]
[1721014924076,0.28631869,62664.0,62663.0,0.008913]
[1721014924550,0.28331869,62664.0,62663.0,0.008913]
[1721014924850,0.42694169,62664.0,62663.0,0.008913]
[1721014925012,0.71418769,62664.0,62663.0,0.008913]
[1721014925771,0.71399571,62664.0,62663.0,0.008913]
[1721014926553,1.00124171,62664.0,62663.0,0.008913]
[1721014927940,1.08174171,62664.0,62663.0,0.008913]
[1721014928346,1.09844802,62664.0,62663.0,0.008913]
[1721014929110,1.89524002,62664.0,62663.0,0.008913]
[1721014929513,1.90643855,62664.0,62663.0,0.008913]
[1721014930314,2.10543855,62664.0,62663.0,0.000913]
[1721014930926,2.11243855,62664.0,62663.0,0.000913]
[1721014931126,2.17151778,62664.0,62663.0,0.000913]
[1721014931335,2.16031925,62664.0,62663.0,0.000913]
[1721014931546,2.1646877,62664.0,62663.0,0.000913]
[1721014931962,0.44824987,62652.0,62651.0,0.46828973]
[1721014932197,0.44824987,62652.0,62644.0,3.93659799]
[1721014932198,0.73532571,62645.0,62644.0,3.14559799]
[1721014932538,1.80742211,62645.0,62644.0,3.14559799]
[1721014932675,1.81897244,62645.0,62644.0,3.14559799]
[1721014933090,0.30395231,62664.0,62645.0,0.0614]
[1721014933091,0.04267958,62651.0,62645.0,0.0614]
[1721014933293,0.00306353,62663.0,62655.0,0.1372]
[1721014933494,0.00306353,62663.0,62655.0,0.1362]
[1721014933495,0.06962255,62658.0,62655.0,0.1362]
[1721014933778,0.06962255,62661.0,62656.0,0.143641]
[1721014933946,0.06962255,62660.0,62656.0,0.143641]
[1721014934148,0.06962255,62658.0,62655.0,0.1362]
[1721014934330,0.06962255,62662.0,62655.0,0.21725238]
[1721014934538,0.06962255,62662.0,62657.0,0.143637]
[1721014934755,0.0736124,62661.0,62657.0,0.143637]
[1721014934953,0.06962255,62656.0,62655.0,0.1362]
[1721014935959,0.06962255,62658.0,62657.0,0.014]
[1721014936379,0.101,62661.0,62660.0,0.143632]
[1721014936380,0.1,62661.0,62660.0,0.143632]
[1721014936707,0.01670631,62664.0,62663.0,0.974025]